bitfinex-derivatives/quotes_ETHF0:USTF0_20210702
["timestamp","ask_amount","ask_price","bid_price","bid_amount"]
[1625184906451,9.766,2130.3,2128.4,20.4695]
[1625184907004,9.766,2130.3,2128.4,3.5395]
[1625184907505,5.0,2130.3,2128.3,2.20527]
[1625184907857,7.5258,2130.3,2128.3,2.20527]
[1625184908052,2.20527,2129.4,2129.3,2.20527]
[1625184908502,2.20527,2129.4,2129.0,2.20527]
[1625184908652,2.20527,2129.4,2127.9,2.749]
[1625184909313,2.20527,2129.4,2128.0,17.17]
[1625184910017,2.20527,2129.8,2129.3,4.41054]
[1625184910119,2.20527,2130.0,2129.3,7.10234]
[1625184910917,2.20527,2130.0,2129.4,17.03]
[1625184912020,2.20527,2130.0,2129.9,4.41054]
[1625184912119,2.20527,2130.0,2129.9,7.20024]
[1625184913080,4.766,2131.4,2129.9,7.20024]
[1625184913471,7.68002829,2132.0,2129.9,7.20024]
[1625184913621,6.68002829,2132.0,2129.9,7.20024]
[1625184913871,5.0,2131.6,2129.9,7.20024]
[1625184914020,2.20527,2130.9,2130.8,2.20527]
[1625184914172,2.20527,2130.9,2130.8,4.48527]
[1625184915079,2.20527,2130.9,2130.8,2.28]
[1625184915193,2.20527,2130.9,2130.6,2.20527]
[1625184915994,4.41054,2130.9,2130.6,4.41054]
[1625184917449,2.20527,2130.9,2130.6,4.41054]
[1625184917799,2.20527,2130.9,2130.8,41.2445]
[1625184917899,2.20527,2130.9,2130.8,44.549]
[1625184918150,2.20527,2130.9,2130.8,3.3045]
[1625184918950,2.20527,2130.9,2130.6,4.41054]
[1625184919960,2.20527,2130.9,2129.4,14.5099]
[1625184920106,2.20527,2130.1,2130.0,2.20527]
[1625184920757,2.20527,2130.1,2129.8,2.20527]
[1625184922057,2.20527,2129.9,2129.8,2.20527]
[1625184922917,1.0,2131.2,2129.8,2.20527]
[1625184923073,1.0,2132.4,2129.8,4.65267]
[1625184923469,13.766,2132.4,2129.8,4.65267]
[1625184923921,5.0,2132.3,2129.8,4.65267]
[1625184924071,2.20527,2130.4,2130.3,2.20527]
[1625184924827,2.20527,2130.4,2129.8,4.65267]
[1625184924927,2.20527,2130.4,2129.8,2.20527]
[1625184926132,2.20527,2129.9,2129.8,2.20527]
[1625184928299,2.20527,2129.9,2129.6,2.20527]
[1625184929202,2.20527,2130.4,2129.6,2.20527]
[1625184929303,2.20527,2130.4,2129.6,5.01247]
[1625184930102,2.20527,2130.4,2130.3,2.20527]
[1625184930203,2.20527,2130.4,2130.3,4.56647]
[1625184936931,2.20527,2130.4,2130.3,2.20527]
[1625184937744,2.20527,2130.4,2129.7,3.6934]
[1625184938196,2.20527,2130.0,2129.7,5.89867]
[1625184940156,2.20527,2130.0,2129.7,8.10394]
[1625184940510,2.20527,2130.0,2129.7,3.6934]
[1625184940613,2.20527,2130.0,2128.5,15.352]
[1625184941314,2.20527,2130.0,2128.6,17.03]
[1625184941417,2.20527,2130.0,2128.6,19.4697]
[1625184942166,2.20527,2130.0,2129.4,2.20527]
[1625184942266,2.20527,2130.0,2129.4,5.22727]
[1625184944176,2.20527,2130.0,2129.8,2.20527]
[1625184946181,2.20527,2129.9,2129.4,3.022]
[1625184947482,2.20527,2129.9,2128.9,2.20527]
[1625184948186,2.20527,2129.9,2129.4,2.20527]
[1625184948286,2.20527,2129.9,2129.4,5.30917]
[1625184950250,2.20527,2129.5,2129.4,5.30917]
[1625184953308,2.20527,2129.9,2129.4,5.30917]
[1625184954212,2.20527,2129.5,2129.4,5.30917]
[1625184954614,2.20527,2129.5,2129.4,3.1039]
[1625184954716,2.20527,2129.5,2128.9,2.20527]
[1625184955416,2.20527,2129.9,2128.9,2.20527]
[1625184955516,2.20527,2129.9,2129.0,16.92]
[1625184956276,2.20527,2129.9,2129.8,2.20527]
[1625184956376,2.20527,2129.9,2129.8,5.50497]
[1625184958132,2.20527,2129.9,2128.6,2.4397]
[1625184958233,2.20527,2129.9,2127.4,1.85372202]
[1625184958333,2.20527,2128.8,2128.6,2.20527]
[1625184961847,2.20527,2128.8,2127.3,15.0446]
[1625184961952,7.20527,2128.8,2127.3,15.0446]
[1625184962248,2.20527,2128.8,2127.3,15.0446]
[1625184962350,3.20527,2129.0,2127.3,15.0446]
[1625184962351,2.20527,2127.4,2127.3,15.0446]
[1625184962659,2.20527,2127.4,2127.2,2.20527]
[1625184965066,2.20527,2127.4,2126.1,1.86121496]
[1625184965177,3.20527,2127.4,2126.1,1.86121496]
[1625184965677,3.20527,2127.4,2126.2,16.93]
[1625184965779,2.20527,2127.4,2126.2,16.93]
[1625184966384,2.20527,2127.4,2127.0,2.20527]
[1625184966534,2.20527,2127.4,2127.0,4.76867]
[1625184966682,2.20527,2127.4,2127.1,16.99]
[1625184967037,2.20527,2127.4,2127.0,2.5634]
[1625184968085,2.20527,2127.4,2127.1,17.02]
[1625184968289,1.0,2128.2,2127.1,17.02]
[1625184968387,2.20527,2128.1,2127.3,4.41054]
[1625184968737,2.20527,2128.1,2127.4,17.18]
[1625184969087,2.20527,2128.1,2127.3,4.41054]
[1625184970341,2.20527,2126.9,2126.8,2.20527]
[1625184970892,1.0,2128.1,2126.8,2.20527]
[1625184970994,1.0,2128.1,2126.8,4.60327]
[1625184972246,1.0,2128.1,2126.9,16.96]
[1625184972345,2.20527,2127.2,2126.9,16.96]
[1625184973047,2.20527,2127.2,2126.8,4.60327]
[1625184976356,2.20527,2126.9,2126.8,4.60327]
[1625184976454,2.20527,2126.9,2126.8,2.398]
[1625184976555,2.20527,2126.9,2125.8,17.17230297]
[1625184976906,2.20527,2126.9,2125.8,15.312]
[1625184977259,2.20527,2126.9,2125.9,17.14]
[1625184977358,2.20527,2126.9,2125.9,19.9669]
[1625184978418,2.20527,2126.5,2126.3,2.20527]
[1625184978768,2.20527,2126.5,2126.4,17.0]
[1625184979019,2.20527,2126.5,2126.3,2.20527]
[1625184982378,2.20527,2126.4,2126.3,2.20527]
[1625184983992,2.20527,2126.4,2126.1,2.20527]
[1625184984392,2.20527,2126.2,2126.1,2.20527]
[1625184986049,2.20527,2126.4,2126.1,2.20527]
[1625184986151,2.20527,2126.4,2126.1,4.47307]
[1625184986402,2.20527,2126.2,2126.1,4.47307]
[1625184992329,2.20527,2126.4,2126.1,4.47307]
[1625184992480,2.20527,2126.4,2126.3,2.20527]
[1625184992687,2.20527,2126.8,2126.3,2.20527]
[1625184992787,41.8792,2128.9,2126.3,19.21527]
[1625184992891,1.92278962,2129.1,2126.3,19.21527]
[1625184992993,14.8485,2129.0,2126.3,19.21527]
[1625184993437,19.8485,2129.0,2126.3,19.21527]
[1625184993838,1.0,2128.9,2126.3,19.21527]
[1625184994189,38.1424,2128.7,2126.3,19.21527]
[1625184994340,6.0,2128.6,2126.3,19.21527]
[1625184994547,2.20527,2127.7,2127.4,2.20527]
[1625184994648,5.01747,2127.7,2127.4,2.20527]
[1625184994948,5.01747,2127.7,2127.2,2.20527]
[1625184995097,5.01747,2127.7,2126.2,15.2921]
[1625184995900,10.01747,2127.7,2126.2,15.2921]
[1625184996000,1.0,2127.6,2125.0,1.84827423]
[1625184996453,1.0,2127.6,2124.9,15.8732]
[1625184996553,2.20527,2126.4,2126.3,2.20527]
[1625184996654,2.20527,2126.4,2126.3,4.78897]
[1625184999628,2.20527,2126.4,2126.1,2.20527]
[1625184999729,4.47697,2126.4,2126.1,2.20527]
[1625185000378,44.5347,2126.2,2126.1,2.20527]
[1625185000481,44.5347,2126.2,2124.7,15.6009]
[1625185000579,2.20527,2125.8,2125.6,2.20527]
[1625185003993,1.0,2126.9,2125.6,2.20527]
[1625185004143,1.1,2128.4,2125.6,2.20527]
[1625185004144,1.0,2127.3,2125.6,4.48617]
[1625185004245,1.1,2128.9,2125.6,4.48617]
[1625185004495,5.0,2127.7,2125.6,4.48617]
[1625185004597,2.20527,2126.4,2126.0,2.20527]
[1625185005295,2.20527,2126.7,2126.0,2.20527]
[1625185006548,4.41054,2126.1,2126.0,2.20527]
[1625185007154,4.41054,2126.1,2125.6,2.2809]
[1625185007304,4.41054,2126.1,2124.7,15.6009]
[1625185007957,4.41054,2126.1,2124.8,17.0]
[1625185008106,4.41054,2126.1,2124.8,20.4352]
[1625185008653,4.41054,2126.1,2125.5,2.20527]
[1625185008753,4.41054,2126.1,2125.5,4.91237]
[1625185009653,2.20527,2126.1,2125.5,4.91237]
[1625185010608,2.20527,2126.1,2126.0,2.20527]
[1625185010707,2.20527,2126.1,2126.0,5.19977]
[1625185011112,2.20527,2126.1,2126.0,2.9945]
[1625185011463,1.0,2127.2,2126.0,2.9945]
[1625185011563,14.7339,2127.4,2126.0,2.9945]
[1625185011765,1.0,2128.1,2126.0,2.9945]
[1625185012427,1.0,2128.1,2126.1,17.01]
[1625185012681,2.20527,2127.1,2127.0,2.20527]
[1625185012829,2.20527,2127.1,2127.0,5.23297]
[1625185014281,1.0,2128.0,2127.0,5.23297]
[1625185014382,15.8386,2128.6,2127.0,5.23297]
[1625185014582,39.1424,2128.7,2127.0,5.23297]
[1625185014689,2.20527,2127.7,2127.6,2.20527]
[1625185014885,2.20527,2127.7,2126.0,2.9945]
[1625185014985,5.88047,2127.7,2126.0,2.9945]
[1625185015536,5.88047,2127.7,2126.1,17.01]
[1625185016191,2.20527,2127.7,2126.1,17.01]
[1625185016642,2.20527,2127.7,2127.3,2.20527]
[1625185016742,2.20527,2127.7,2127.3,5.43107]
[1625185018503,2.20527,2127.7,2127.3,3.2258]
[1625185018604,2.20527,2127.7,2127.1,2.20527]
[1625185018754,4.41054,2127.2,2127.1,2.20527]
[1625185018855,4.41054,2127.2,2125.7,15.2157]
[1625185019556,4.41054,2127.2,2125.8,17.07]
[1625185019660,4.41054,2127.2,2125.8,20.2666]
[1625185020715,2.20527,2126.8,2126.5,2.20527]
[1625185024688,2.20527,2126.7,2126.5,2.20527]
[1625185024785,2.20527,2126.7,2125.8,3.1966]
[1625185024888,2.20527,2126.7,2125.7,15.2157]
[1625185025437,2.20527,2126.7,2125.8,17.17]
[1625185025588,2.20527,2126.7,2125.8,20.0384]
[1625185026699,2.20527,2126.7,2126.6,2.20527]
[1625185028754,2.20527,2126.8,2126.6,2.20527]
[1625185028855,2.20527,2126.8,2126.5,2.20527]
[1625185030756,4.41054,2126.8,2126.5,2.20527]
[1625185031610,47.4636,2127.4,2126.5,2.20527]
[1625185032764,2.20527,2126.8,2126.5,4.41054]
[1625185038384,2.20527,2126.8,2125.7,15.2157]
[1625185038786,2.20527,2126.8,2126.4,2.20527]
[1625185038884,2.20527,2126.8,2126.4,4.71967]
[1625185040803,4.41054,2126.8,2126.4,4.71967]
[1625185042806,2.20527,2126.5,2126.4,4.71967]
[1625185044573,52.94497,2126.5,2126.4,4.71967]
[1625185044820,52.94497,2126.5,2126.4,2.5144]
[1625185044921,52.94497,2126.5,2126.2,2.20527]
[1625185045679,52.94497,2126.5,2125.9,2.20527]
[1625185046427,52.94497,2126.5,2125.0,1.85536396]
[1625185046526,1.0,2126.4,2125.0,1.85536396]
[1625185046775,1.0,2126.4,2125.1,1.85804622]
[1625185046875,2.20527,2125.6,2125.4,2.20527]
[1625185048883,4.41054,2125.6,2125.4,2.20527]
[1625185049081,48.01974,2125.6,2125.4,2.20527]
[1625185049383,48.01974,2125.6,2125.5,0.13911137]
[1625185050191,48.01974,2125.6,2125.4,2.20527]
[1625185050491,45.81447,2125.6,2125.5,0.13911153]
[1625185051597,45.81447,2125.6,2125.4,6.80890277]
[1625185052147,45.81447,2125.6,2125.4,4.95047]
[1625185052450,45.81447,2125.6,2125.4,2.20527]
[1625185052899,45.81447,2125.6,2125.3,4.06385055]
[1625185054309,45.81447,2125.6,2125.3,2.20527]
[1625185054864,45.81447,2125.6,2125.3,4.06753473]
[1625185054962,2.20527,2125.4,2125.3,4.06753473]
[1625185058316,2.20527,2125.4,2125.3,4.20664778]
[1625185058466,2.20527,2125.4,2125.3,2.34438305]
[1625185058816,2.20527,2125.4,2125.3,5.00702225]
[1625185059520,2.20527,2125.4,2125.3,4.8679092]
[1625185059918,2.20527,2125.4,2125.3,5.00701931]
[1625185061171,7e-05,2125.4,2125.3,5.00701931]
[1625185061323,1.0,2126.3,2125.3,5.00701931]
[1625185061427,1.0,2127.0,2125.3,8.77927439]
[1625185061524,15.3362,2127.3,2125.3,9.73027439]
[1625185061776,15.3362,2127.3,2125.7,1.86295697]
[1625185061873,15.3362,2127.3,2125.9,34.9293]
[1625185061976,15.3362,2127.3,2125.9,37.3238]
[1625185062124,15.3362,2127.3,2126.0,0.13908464]
[1625185062226,1.938443,2127.4,2126.0,17.09908464]
[1625185062531,1.0,2127.4,2126.1,0.13909154]
[1625185062881,1.0,2127.4,2126.6,2.20527]
[1625185063031,2.20527,2126.7,2126.6,4.89427]
[1625185065002,4.41054,2126.7,2126.6,4.89427]
[1625185065499,44.18894,2126.7,2126.6,4.89427]
[1625185065651,4.41054,2126.7,2126.6,4.89427]
[1625185066052,4.41054,2126.7,2126.6,2.20527]
[1625185066609,4.41054,2126.7,2125.9,1.86619961]
[1625185066912,2.20527,2126.2,2125.9,4.07146961]
[1625185067012,2.20527,2126.2,2126.0,0.13909496]
[1625185067210,2.20527,2126.7,2126.0,0.13909496]
[1625185067413,2.20527,2126.7,2125.9,2.20527]
[1625185067764,5.35137,2126.7,2125.9,2.20527]
[1625185068026,10.35137,2126.7,2125.9,2.20527]
[1625185068164,10.35137,2126.7,2125.7,2.20527]
[1625185068414,38.8264,2125.8,2125.7,2.20527]
[1625185068516,42.2158,2125.8,2125.7,2.20527]
[1625185068967,46.62634,2125.8,2125.4,1.33726456]
[1625185069419,46.62634,2125.8,2125.3,3.54193951]
[1625185069716,46.62634,2125.8,2125.4,1.33631083]
[1625185070916,2.20527,2125.5,2125.4,1.33631083]
[1625185071517,2.20527,2125.5,2125.4,1.47544463]
[1625185071617,2.20527,2125.5,2125.4,0.1391338]
[1625185072268,2.20527,2125.5,2125.3,3.54017034]
[1625185073422,2.20527,2125.5,2125.4,0.13913448]
[1625185073780,2.20527,2125.5,2125.3,3.54017034]
[1625185075794,2.20527,2125.5,2125.3,2.20527]
[1625185077648,4.62157,2125.5,2124.9,1.33435597]
[1625185077747,9.62157,2125.5,2124.9,1.33435597]
[1625185077899,4.62157,2125.5,2124.9,1.33435597]
[1625185078148,9.62157,2125.5,2124.9,1.33435597]
[1625185078249,39.4289,2124.8,2124.5,1.33613631]
[1625185078348,42.3866,2124.8,2124.5,1.33613631]
[1625185079002,2.20527,2124.6,2124.4,3.54147732]
[1625185079253,2.20527,2124.6,2124.4,2.20527]
[1625185083110,3.20527,2125.4,2124.4,2.20527]
[1625185083211,2.20527,2125.4,2124.4,4.53187]
[1625185083562,2.20527,2125.4,2124.8,39.7344]
[1625185083862,2.20527,2125.4,2124.9,16.99]
[1625185083961,2.20527,2125.4,2124.9,20.4685]
[1625185084617,2.20527,2125.4,2124.9,3.4785]
[1625185085067,2.20527,2125.4,2125.3,2.20527]
[1625185091454,2.20527,2125.4,2124.6,1.3365628]
[1625185091557,4.94037,2125.4,2124.5,1.33646649]
[1625185092057,44.0526,2124.6,2124.3,1.33702863]
[1625185092456,44.0526,2124.6,2124.2,1.87184008]
[1625185092457,44.0526,2124.6,2124.2,1.33737895]
[1625185092957,44.0526,2124.6,2124.3,1.33741461]
[1625185093159,44.0526,2124.6,2124.5,2.20527]
[1625185095209,46.25787,2124.6,2124.5,2.20527]
[1625185101484,2.20527,2124.6,2124.5,2.20527]
[1625185101584,2.20527,2124.6,2124.5,5.40717]
[1625185101784,1.0,2125.5,2124.5,5.40717]
[1625185101885,43.9228,2125.8,2124.5,5.40717]
[1625185101990,44.9228,2125.8,2124.5,5.40717]
[1625185102236,49.9228,2125.8,2124.5,5.40717]
[1625185102840,42.1744,2124.9,2124.5,5.40717]
[1625185103292,4.41054,2124.6,2124.5,5.40717]
[1625185105153,44.9228,2125.8,2124.5,5.40717]
[1625185105256,2.20527,2125.2,2124.5,5.40717]
[1625185106970,43.063,2124.9,2124.5,5.40717]
[1625185107210,43.063,2124.9,2124.8,2.20527]
[1625185108466,43.063,2124.9,2124.5,2.20527]
[1625185109225,2.20527,2124.6,2124.5,2.20527]
[1625185109375,2.20527,2124.6,2124.3,2.20527]
[1625185113082,4.97037,2124.6,2124.3,2.20527]
[1625185113332,7.17564,2124.6,2124.3,2.20527]
[1625185124733,4.41054,2124.6,2124.3,5.60107]
[1625185125089,2.20527,2124.6,2124.3,5.60107]
[1625185125293,2.20527,2124.9,2124.5,2.20527]
[1625185125992,2.20527,2124.9,2124.3,5.60107]
[1625185126441,48.5781,2124.4,2124.3,5.60107]
[1625185127299,52.98864,2124.4,2124.3,5.60107]
[1625185129705,4.41054,2124.4,2124.3,5.60107]
[1625185144916,1.0,2125.6,2124.3,5.60107]
[1625185145117,4.41545023,2126.3,2124.3,5.60107]
[1625185145118,14.5838,2126.1,2124.3,5.60107]
[1625185145518,2.20527,2125.2,2125.1,2.20527]
[1625185145617,2.20527,2125.2,2125.1,4.73997]
[1625185146570,1.0,2126.0,2125.1,4.73997]
[1625185147419,1.0,2126.0,2125.7,2.20527]
[1625185147569,47.604,2126.1,2125.7,4.67607]
[1625185147671,2.20527,2126.2,2125.7,4.67607]
[1625185148624,52.3992,2127.1,2125.7,4.67607]
[1625185148725,1.0,2126.6,2125.7,4.67607]
[1625185148823,52.3992,2127.1,2125.7,4.67607]
[1625185148925,37.2903,2127.1,2125.7,4.67607]
[1625185149429,2.20527,2126.7,2126.6,2.20527]
[1625185149534,2.20527,2126.7,2126.6,5.91307]
[1625185153800,5.58177,2126.7,2126.6,2.20527]
[1625185154898,2.20527,2126.7,2126.6,2.20527]
[1625185156721,3.20527,2127.1,2126.6,2.20527]
[1625185156818,2.20527,2127.1,2126.6,2.20527]
[1625185157323,1.0,2127.6,2126.6,2.20527]
[1625185157523,1.0,2127.6,2127.5,4.41054]
[1625185157623,3.58581467,2127.7,2127.5,7.20524]
[1625185157823,2.20527,2127.7,2127.5,7.20524]
[1625185159729,66.934,2127.8,2127.5,7.20524]
[1625185160482,66.934,2127.8,2127.5,4.99997]
[1625185160582,66.934,2127.8,2127.5,2.20527]
[1625185161082,68.31359823,2127.8,2127.5,2.20527]
[1625185161435,66.934,2127.8,2127.5,2.20527]
[1625185162935,2.20527,2127.9,2127.5,2.20527]
[1625185164999,7.20527,2127.9,2127.5,2.20527]
[1625185165346,8.58352616,2127.9,2127.5,2.20527]
[1625185165493,2.20527,2127.6,2127.1,2.20527]
[1625185165597,47.1258,2127.2,2127.1,2.20527]
[1625185167597,49.33107,2127.2,2127.1,2.20527]
[1625185168197,2.20527,2127.2,2126.7,2.20527]
[1625185169602,4.41054,2127.2,2127.1,2.20527]
[1625185169703,4.41054,2127.2,2127.1,5.32337]
[1625185170657,4.41054,2127.2,2127.1,3.1181]
[1625185172518,4.41054,2127.2,2126.7,2.20527]
[1625185173575,2.20527,2126.8,2126.7,2.20527]
[1625185173671,4.62467,2126.8,2125.3,0.05797]
[1625185173773,1.0,2126.7,2124.7,6.1108771]
[1625185174272,1.0,2126.7,2124.7,4.766]
[1625185174523,41.4246,2125.9,2124.7,4.766]
[1625185174873,46.1856,2125.9,2124.7,4.766]
[1625185175525,46.1856,2125.9,2124.1,1.34670599]
[1625185175627,2.20527,2125.5,2125.4,2.20527]
[1625185175729,3.20527,2125.5,2125.4,2.20527]
[1625185175977,3.20527,2125.5,2125.2,2.20527]
[1625185176479,3.20527,2125.5,2123.9,15.4933]
[1625185177181,3.20527,2125.5,2124.0,17.08]
[1625185177628,3.20527,2125.5,2125.0,2.20527]
[1625185179234,3.20527,2125.5,2124.8,2.20527]
[1625185179332,6.85687,2125.5,2124.8,2.20527]
[1625185179633,4.41054,2124.9,2124.8,2.20527]
[1625185179882,5.41054,2124.9,2124.8,2.20527]
[1625185180032,8.91794,2124.9,2124.8,2.20527]
[1625185180132,56.80404,2124.9,2124.8,2.20527]
[1625185182943,8.91794,2124.9,2124.8,2.20527]
[1625185183042,4.41054,2124.9,2124.8,2.20527]
[1625185183242,2.20527,2124.9,2124.8,2.20527]
[1625185183340,3.20527,2124.9,2124.8,2.20527]
[1625185183693,5.41054,2124.9,2124.8,2.20527]
[1625185191320,4.41054,2124.9,2124.8,2.20527]
[1625185192722,2.20527,2124.9,2124.8,2.20527]
[1625185193022,1.0,2125.6,2124.8,2.20527]
[1625185193673,2.20527,2125.5,2125.4,2.20527]
[1625185193775,3.20527,2125.5,2125.4,2.20527]
[1625185193875,3.20527,2125.5,2124.8,2.20527]
[1625185194903,6.83457,2125.5,2124.8,2.20527]
[1625185195200,36.1708,2124.9,2124.8,2.20527]
[1625185195306,39.4075,2124.9,2124.8,2.20527]
[1625185195751,42.61277,2124.9,2124.8,2.20527]
[1625185199361,6.44197,2124.9,2124.8,2.20527]
[1625185199461,3.20527,2124.9,2124.8,2.20527]
[1625185200921,52.07647,2124.9,2124.8,2.20527]
[1625185202025,55.73937,2124.9,2124.8,2.20527]
[1625185203427,3.20527,2124.9,2124.8,2.20527]
[1625185203527,3.20527,2124.9,2124.8,4.96797]
[1625185203528,2.20527,2124.9,2124.8,4.96797]
[1625185204681,1.0,2125.8,2124.8,4.96797]
[1625185205783,2.20527,2125.2,2124.8,4.96797]
[1625185206384,36.8246,2124.9,2124.8,4.96797]
[1625185207537,2.20527,2125.2,2124.8,4.96797]
[1625185207840,2.20527,2125.2,2125.1,2.20527]
[1625185208091,43.16697,2125.2,2125.1,2.20527]
[1625185208191,40.9617,2125.2,2125.1,2.20527]
[1625185209144,1.0,2125.8,2125.1,2.20527]
[1625185209897,2.20527,2125.5,2125.4,2.20527]
[1625185209997,2.20527,2125.5,2125.4,4.86237]
[1625185211203,1.0,2126.3,2125.4,4.86237]
[1625185211303,58.54,2126.6,2125.4,4.86237]
[1625185211855,2.20527,2126.4,2126.2,2.20527]
[1625185211953,1.0,2126.3,2126.2,5.32397]
[1625185212053,1.0,2126.3,2126.2,3.1187]
[1625185212306,2.20527,2126.4,2126.2,3.1187]
[1625185213355,3.20527,2126.4,2126.2,3.1187]
[1625185213507,2.20527,2126.4,2126.2,3.1187]
[1625185214608,3.20527,2126.4,2126.2,3.1187]
[1625185215556,2.20527,2126.4,2126.2,3.1187]
[1625185216009,1.0,2126.3,2126.2,3.1187]
[1625185217715,1.0,2126.3,2126.0,2.20527]
[1625185217867,2.20527,2126.1,2126.0,2.20527]
[1625185218066,3.20527,2126.1,2126.0,2.20527]
[1625185218566,2.20527,2126.1,2126.0,2.20527]
[1625185220786,2.20527,2126.4,2126.0,2.20527]
[1625185220890,2.20527,2126.4,2126.0,4.93147]
[1625185221890,2.20527,2126.4,2126.3,2.20527]
[1625185227749,3.20527,2126.4,2126.3,2.20527]
[1625185228099,2.20527,2126.4,2126.3,2.20527]
[1625185230351,3.20527,2126.4,2126.3,2.20527]
[1625185231556,2.20527,2126.4,2126.3,2.20527]
[1625185236565,2.20527,2126.6,2126.3,2.20527]
[1625185237814,1.0,2127.4,2126.3,2.20527]
[1625185237925,1.37901492,2127.8,2126.3,2.20527]
[1625185238064,2.20527,2127.1,2127.0,2.20527]
[1625185238165,2.37901492,2127.8,2127.0,4.67897]
[1625185238274,1.0,2127.8,2127.0,4.67897]
[1625185239970,2.20527,2127.6,2127.4,2.20527]
[1625185241384,1.37826665,2128.4,2127.4,2.20527]
[1625185241842,1.0,2128.5,2127.4,2.20527]
[1625185241939,1.37811792,2128.7,2127.4,2.20527]
[1625185242040,2.20527,2128.5,2128.4,4.41054]
[1625185242140,2.20527,2128.5,2128.4,7.05444]
[1625185242540,3.20527,2128.5,2128.4,7.05444]
[1625185242742,1.0,2128.5,2128.4,7.05444]
[1625185245395,2.20527,2128.7,2128.4,7.05444]
[1625185245496,3.20527,2128.7,2128.4,7.05444]
[1625185246950,2.20527,2128.7,2128.4,7.05444]
[1625185247454,3.20527,2128.7,2128.4,7.05444]
[1625185247601,2.20527,2128.7,2128.4,7.05444]
[1625185250109,1.0,2128.6,2128.4,7.05444]
[1625185251810,1.0,2128.6,2128.4,4.41054]
[1625185252013,2.20527,2128.5,2128.4,4.41054]
[1625185252113,3.20527,2128.5,2128.4,4.41054]
[1625185252415,3.20527,2128.5,2127.1,15.2918]
[1625185254025,2.20527,2128.0,2127.9,2.20527]
[1625185254469,3.20527,2128.0,2127.9,2.20527]
[1625185254933,3.20527,2128.0,2127.6,2.20527]
[1625185255036,3.20527,2128.0,2127.1,15.2918]
[1625185256092,2.20527,2127.5,2127.4,2.20527]
[1625185256345,47.41697,2127.5,2127.4,2.20527]
[1625185256992,48.41697,2127.5,2127.4,2.20527]
[1625185258097,50.62224,2127.5,2127.1,15.2918]
[1625185258298,50.62224,2127.5,2126.9,2.20527]
[1625185258599,49.62224,2127.5,2126.9,2.20527]
[1625185258848,47.41697,2127.5,2126.9,2.20527]
[1625185258948,1.0,2127.4,2126.9,2.20527]
[1625185259303,47.41697,2127.5,2126.9,2.20527]
[1625185259400,2.20527,2127.5,2126.9,5.79317]
[1625185260105,2.20527,2127.5,2127.4,4.41054]
[1625185260203,2.20527,2127.5,2127.4,7.54764]
[1625185260905,3.20527,2127.5,2127.4,7.54764]
[1625185262112,2.20527,2127.5,2127.4,7.54764]
[1625185262364,3.20527,2127.5,2127.4,7.54764]
[1625185262462,2.20527,2127.5,2127.4,7.54764]
[1625185263313,3.20527,2127.5,2127.4,7.54764]
[1625185264369,1.0,2127.5,2127.4,7.54764]
[1625185265366,2.20527,2127.9,2127.4,7.54764]
[1625185265615,1.0,2127.8,2127.4,7.54764]
[1625185266216,1.0,2127.8,2127.7,2.20527]
[1625185266923,43.197,2128.3,2127.7,2.20527]
[1625185267018,1.0,2128.2,2127.7,2.20527]
[1625185267220,2.20527,2128.4,2127.7,2.20527]
[1625185268121,2.20527,2128.4,2127.4,56.45047]
[1625185268122,2.20527,2128.4,2128.3,3.41054]
[1625185268220,2.20527,2128.4,2128.3,6.30674]
[1625185269326,2.20527,2128.4,2128.3,2.8962]
[1625185269425,2.20527,2128.4,2127.4,3.1371]
[1625185269574,36.071,2128.2,2126.9,3.5879]
[1625185269674,36.071,2128.2,2126.7,15.2429]
[1625185270128,36.071,2128.2,2128.1,4.41054]
[1625185270243,36.071,2128.2,2128.1,7.34134]
[1625185272656,36.071,2128.2,2128.1,5.13607]
[1625185272752,36.071,2128.2,2128.1,2.20527]
[1625185273305,36.071,2128.2,2127.4,3.3023]
[1625185273807,4.41054,2128.4,2127.4,3.3023]
[1625185274157,4.41054,2128.4,2128.3,2.20527]
[1625185276825,39.81374,2128.4,2128.3,2.20527]
[1625185277374,39.81374,2128.4,2128.1,2.2978]
[1625185278480,4.41054,2128.4,2128.1,2.2978]
[1625185279490,4.41054,2128.4,2128.0,2.20527]
[1625185280243,4.41054,2128.4,2128.3,2.20527]
[1625185280349,4.41054,2128.4,2128.3,4.49977]
[1625185283302,4.41054,2128.4,2128.3,2.2945]
[1625185283402,4.41054,2128.4,2128.0,2.20527]
[1625185283604,42.8176,2128.1,2128.0,2.20527]
[1625185284154,4.41054,2128.4,2128.0,2.20527]
[1625185284256,2.20527,2128.1,2128.0,2.20527]
[1625185293468,2.20527,2128.4,2128.0,2.20527]
[1625185294068,2.20527,2128.4,2128.0,5.56187]
[1625185294319,2.20527,2128.1,2128.0,7.76714]
[1625185297731,2.20527,2128.1,2126.9,1.0]
[1625185297832,3.20527,2128.1,2125.5,5.0]
[1625185297932,3.20527,2128.1,2126.1,1.0]
[1625185298281,2.20527,2127.4,2127.3,2.20527]
[1625185300349,4.41054,2127.4,2127.3,2.20527]
[1625185305526,4.41054,2127.4,2126.4,3.1258]
[1625185306379,4.41054,2127.4,2127.0,2.20527]
[1625185307883,4.41054,2127.4,2126.0,1.0]